Cogmind - Beta 15 @@@ ROGUE MODE // 2025.07.12 @ 13:50:17 Player: saltine Result: Destroyed by H-88 Terminator with Heavy Machine Gun Performance ------------- Evolutions (8) 4000 Regions Visited (19) 3800 Robots Destroyed (235) 1175 Value Destroyed (10660) 10660 Prototype IDs (233) 4660 Alien Tech Used (4) 800 Bonus (10409) 10409 TOTAL SCORE: 35504 Bonus ------- High Alert Combat Kills 1256 Follower Combat Kills 2042 Network Hubs Disabled 400 Delivered SUBCON Basin 2000 Registered with UFD 300 Met Optimus in HQ 500 Met Data Miner 300 Used Data Conduit 3000 Met R17 at Cetus 500 Pursued by Intercept 500 Friendly Fire -389 Cogmind --------- Core Integrity 0/1450 Matter 216/300 Energy 100/100 System Corruption 1% Temperature Cool (3) Movement Flying (30) Location -2/Testing Parts ------- > --- POWER (2) -------- (None) > --- PROPULSION (6) --- Cooled Q-thruster > --- UTILITY (11) ----- Experimental Optical Array Experimental Terrain Scan Processor Advanced Targeting Computer > --- WEAPON (4) ------- (None) > --- INVENTORY (5) ---- Quantum Reactor Subatomic Replicator Null Cannon Core Cannon Peak State ------------ > --- POWER ------------ Light Antimatter Reactor Light Antimatter Reactor > --- PROPULSION ------- Myomer Leg Biometal Leg Biometal Leg Wheel Compact Wheel High-density Centrium Wheel > --- UTILITY ---------- High-capacity Storage Unit Experimental Optical Array Advanced Targeting Computer Advanced Melee Analysis Suite Improved Transmission Jammer Experimental Phase Shifter Layered Light Armor Plating Layered Light Armor Plating Layered Light Armor Plating Improved Hacking Suite Advanced System Shield > --- WEAPON ----------- Heavy Hardcell Cannon Sigix Broadsword > --- INVENTORY -------- Experimental Heat Sink Quantum Shading Machine Deep Structural Scanner Experimental Terrain Scan Processor Experimental Utility Shielding Graphene Brace Improved System Shield Mapping Drone Bay Subatomic Replicator Compact HERF Cannon Core Cannon Linked Autogun Linear Accelerator Heavy Linear Accelerator Core Stripper [Rating: 167] Favorites ----------- Power Subdweller Power Source Engine Subdweller Power Source Power Core Neutrino Core Reactor Antimatter Reactor Propulsion Wheel Treads Light Treads Leg Enhanced Flexi-carbon Leg Wheel Wheel Flight Unit Cooled Q-thruster Utility Humpback Device Advanced Heat Sink Storage Humpback Processor Advanced Targeting Computer Hackware Improved Hacking Suite Protection Layered Medium Armor Plating Artifact Phase Armor Weapon Subdweller Beam Cannon Energy Gun Overtuned Beamcaster Energy Cannon Subdweller Beam Cannon Ballistic Gun Advanced KE Penetrator Ballistic Cannon Battle Cannon Launcher Grenade Launcher Special Weapon Mining Laser Impact Weapon Powered Hammer Slashing Weapon Chainsword Build | -11 -10 -10 -9 -9 -6 -6 -6 -6 -5 -5 -4 -4 -4 -4 -4 -3 -3 -2 -2 ------- Run | Yrd Mat Sub Rec Scr Fac Low Low Dat Pro Fac Fac Ext Cet Arc Hub Res Qua Res Tes Slots Evolved 16 | . . . . . 8 . . . . 2 2 . . . . 2 . 2 . Power 1 | . . . . . 1 . . . . . . . . . . . . . . Propulsion 4 | . . . . . 1 . . . . 2 . . . . . 1 . . . Utility 9 | . . . . . 5 . . . . . 2 . . . . 1 . 1 . Weapon 2 | . . . . . 1 . . . . . . . . . . . . 1 . Parts Attached 205 | 7 1 15 5 4 28 3 2 19 1 21 5 22 12 6 6 24 15 5 4 Power 26 | 1 . 1 . 3 2 2 . 3 . 1 . 2 4 1 1 2 2 . 1 Engine 8 | 1 . 1 . 3 1 2 . . . . . . . . . . . . . Core 4 | . . . . . 1 . . . . 1 . 2 . . . . . . . Reactor 14 | . . . . . . . . 3 . . . . 4 1 1 2 2 . 1 Propulsion 46 | 2 . 5 2 . 4 . . 3 . 7 3 4 . 1 2 8 4 . 1 Treads 11 | 2 . 1 1 . . . . . . . 2 3 . 1 . 1 . . . Leg 19 | . . . . . . . . . . 7 1 1 . . 2 7 1 . . Wheel 15 | . . 4 1 . 4 . . 3 . . . . . . . . 3 . . Hover . | . . . . . . . . . . . . . . . . . . . . Flight 1 | . . . . . . . . . . . . . . . . . . . 1 Utility 83 | 2 1 3 . . 13 1 1 9 . 10 1 12 3 4 2 11 5 5 . Device 32 | 1 . . . . 7 . . 4 . 6 . 5 2 2 1 . 1 3 . Storage 6 | 1 1 2 . . 1 . . . . . . . . . . 1 . . . Processor 13 | . . . . . 2 . . 1 . . 1 2 . . . 6 . 1 . Hackware 6 | . . . . . . . . . . . . . . 2 1 2 . 1 . Protection 25 | . . 1 . . 3 1 1 4 . 4 . 5 1 . . 2 3 . . Artifact 1 | . . . . . . . . . . . . . . . . . 1 . . Weapon 50 | 2 . 6 3 1 9 . 1 4 1 3 1 4 5 . 1 3 4 . 2 Energy Gun 10 | 1 . 1 . 1 2 . . . . . . 3 1 . . . . . 1 Energy Cannon 16 | . . 2 1 . 5 . . . 1 3 1 . . . . 1 1 . 1 Ballistic Gun 10 | 1 . . 2 . . . . . . . . 1 4 . 1 1 . . . Ballistic Cannon 4 | . . 1 . . . . . . . . . . . . . 1 2 . . Launcher 3 | . . 1 . . 2 . . . . . . . . . . . . . . Special Weapon 3 | . . 1 . . . . . 2 . . . . . . . . . . . Impact Weapon 1 | . . . . . . . . 1 . . . . . . . . . . . Slashing Weapon 3 | . . . . . . . 1 1 . . . . . . . . 1 . . Piercing Weapon . | . . . . . . . . . . . . . . . . . . . . Special Melee Weapon . | . . . . . . . . . . . . . . . . . . . . Unidentified Prototypes 8 | . . . . . 1 . . 1 . 1 . . . . . 1 2 . 2 Parts Lost 96 | . . 1 2 . 12 . 2 3 2 20 . . . . 16 6 7 22 3 Power 12 | . . . . . 2 . . 1 . 3 . . . . 2 . 2 2 . Propulsion 22 | . . 1 . . 1 . . . . 5 . . . . 4 3 2 6 . Utility 41 | . . . 1 . 4 . . 2 2 10 . . . . 5 3 2 9 3 Weapon 21 | . . . 1 . 5 . 2 . . 2 . . . . 5 . 1 5 . Highest Loss Streak 18 | . . 1 1 . 8 . 1 2 2 12 . . . . 16 2 4 18 2 To Critical Strikes 1 | . . . . . 1 . . . . . . . . . . . . . . Average Backups 16 | 3 7 10 18 22 29 23 24 24 25 21 5 4 4 5 4 4 12 14 3 Power 1 | . 1 . 1 1 1 2 2 1 2 2 . . . . . . . . . Propulsion 3 | 1 2 2 4 5 3 2 3 4 7 3 . . . . . . . . . Utility 6 | . . 1 4 8 16 12 12 12 12 10 4 4 3 3 2 2 6 7 . Weapon 4 | 1 2 4 6 6 5 3 3 3 3 3 1 . 1 2 1 1 4 5 1 Tool/Special . | . . . . . . . . . . . . . . . . . . . . Unused Backups 45 | . . 1 . 13 9 3 2 3 . 7 . . 1 . . 1 . 2 3 Power 5 | . . . . 1 . 1 . 1 . 2 . . . . . . . . . Propulsion 11 | . . . . 5 3 . 1 1 . 1 . . . . . . . . . Utility 21 | . . . . 6 6 1 1 1 . 4 . . 1 . . . . 1 . Weapon 6 | . . 1 . 1 . . . . . . . . . . . 1 . 1 2 Tool/Special 2 | . . . . . . 1 . . . . . . . . . . . . 1 Average Slot Usage (%) 75 | . 100 82 73 64 82 91 84 90 98 95 10 77 89 88 80 62 86 78 23 Engine 8 | . 14 11 9 13 6 12 13 7 . . . . . . . . . . . Reactor 1 | . . . . . . . . 5 13 9 . . 5 10 9 3 5 5 . Treads 6 | . 28 18 7 . . . . . . . 7 14 21 21 17 1 . . . Leg 2 | . . . . . . . . . . 22 . . . . . 14 23 10 . Wheel 14 | . . 3 19 28 19 20 20 20 20 4 . . . . . . 4 11 . Device 7 | . 14 9 . . 13 20 23 14 23 17 . 17 21 19 13 4 2 7 3 Storage 9 | . 14 12 9 13 6 6 6 6 6 4 . . . . . 1 4 3 . Processor 3 | . . . . . 5 6 2 4 . . 2 11 10 9 5 17 16 13 15 Hackware 1 | . . . . . . . . . . . . . . 2 10 12 10 6 2 Protection 4 | . . 2 4 . 5 5 6 17 14 15 . 8 9 10 8 2 5 11 . Energy Gun 3 | . 14 2 5 4 7 6 6 . . . . 7 4 . . . . . . Energy Cannon 3 | . . 8 8 . 9 13 4 . 2 13 . . . . . . 1 . . Ballistic Gun 2 | . 14 3 6 . . . . . . . . 4 10 15 13 1 . . . Launcher 1 | . . . . 4 . . . . . . . . . . . . . . . Peak Build Rating 167 | 7 7 51 56 25 63 71 67 78 78 118 43 100 116 118 115 132 165 167 74 Average Rating 44 | 4 6 19 43 12 57 69 61 68 73 102 28 87 109 115 104 82 143 145 42 On Entrance 58 | . 7 7 50 10 24 60 71 57 73 70 2 43 97 116 115 41 132 151 43 Naked Turns 59 | . . . . . . . . . . 32 27 . . . . . . . . Heaviest Build 338 | 11 16 254 265 215 338 151 145 149 147 170 . 84 100 101 97 98 135 109 1 Greatest Support 150 | 40 40 40 30 20 26 24 24 34 34 140 3 144 144 149 149 102 150 46 7 Greatest Overweight (x) 68 | 1 . 12 13 68 20 6 6 6 4 7 . . . . . 4 2 4 . Average Overweight (x) 4 | . . 2 9 11 9 5 5 4 4 2 . . . . . . . 1 . Largest Inventory Capacity 35 | 8 10 35 35 35 35 25 25 25 25 25 5 5 5 5 5 20 20 20 5 Average Capacity 24 | 7 9 16 35 34 34 25 25 25 25 24 5 5 5 5 5 9 20 19 5 Most Carried 35 | 5 9 32 35 35 35 25 25 25 25 25 5 5 5 5 5 10 20 20 5 Average Carried 19 | 3 7 13 34 23 32 24 24 24 25 21 4 4 4 5 4 5 16 17 4 Final Capacity 35 | 8 10 35 35 35 25 25 25 25 25 5 5 5 5 5 5 20 20 5 5 Final Carried 35 | 5 9 32 23 35 24 25 25 25 25 5 5 5 5 5 4 10 19 5 5 Class Distribution -------------------- 43% | Hauler-Mutant 14% | Mutant 11% | Scavenger-Mutant 10% | Scavenger-Tank 4% | Hauler-Scrapper 3% | Hacker-Mutant 3% | Scavenger-Scrapper Dominant Class ---------------- Mutant | -10/Materials Mutant | -10/Subcaves Hauler-Mutant | -9/Recycling Hauler-Mutant | -9/Scraptown Hauler-Scrapper | -6/Factory Scavenger-Scrapper | -6/Lower Caves Scavenger-Scrapper | -6/Lower Caves Derelict-Gladiator | -6/Data Miner Scavenger-Mutant | -5/Proximity Caves Scavenger-Tank | -5/Factory Mutant | -4/Factory Scavenger-Tank | -4/Extension Scavenger-Tank | -4/Cetus Scavenger-Tank | -4/Archives Scavenger-Tank | -4/Hub_04(d) Hacker-Mutant | -3/Research Hacker-Gladiator | -3/Quarantine Scavenger-Gladiator | -2/Research Mutant | -2/Testing Resources | -11 -10 -10 -9 -9 -6 -6 -6 -6 -5 -5 -4 -4 -4 -4 -4 -3 -3 -2 -2 ----------- Run | Yrd Mat Sub Rec Scr Fac Low Low Dat Pro Fac Fac Ext Cet Arc Hub Res Qua Res Tes Matter Collected 5912 | 230 59 721 174 455 687 90 72 318 . 355 38 338 250 286 374 439 656 370 . Remotely . | . . . . . . . . . . . . . . . . . . . . Salvage Created 10573 | 14 110 748 539 . 1727 . 141 352 4 2280 . 1026 241 334 900 308 1046 626 177 Parts 547 | 4 9 60 26 . 81 . 3 33 1 106 . 42 12 16 55 11 54 29 5 Haulers Intercepted 5 | . 1 . . . . . . . . 1 . . . . . 3 . . . Recyclers Shooed 3 | 1 . . . . . . . . . . . 1 . . . . . 1 . Parts Field Recycled . | . . . . . . . . . . . . . . . . . . . . Retrieved Matter . | . . . . . . . . . . . . . . . . . . . . Parts Self-Destructed 42 | . . 18 . . . 13 10 . 1 . . . . . . . . . . Prevented . | . . . . . . . . . . . . . . . . . . . . Kills | -11 -10 -10 -9 -9 -6 -6 -6 -6 -5 -5 -4 -4 -4 -4 -4 -3 -3 -2 -2 ------- Run | Yrd Mat Sub Rec Scr Fac Low Low Dat Pro Fac Fac Ext Cet Arc Hub Res Qua Res Tes Combat Hostiles Destroyed 185 | . 3 20 9 . 36 . 4 4 1 43 . 17 3 2 10 1 20 12 . Melee 29 | . . . . . . . . 4 . 3 . 12 . . . . 6 4 . Guns 34 | . 3 1 1 . 4 . 2 . . . . 5 3 2 10 . 3 . . Cannons 92 | . . 12 8 . 20 . 1 . 1 32 . . . . . 1 10 7 . AOE 19 | . . 7 . . 9 . . . . 3 . . . . . . . . . Classes Destroyed 23 | 1 2 5 4 . 4 . . . 1 2 . . 1 . 1 . . 1 1 Worker 13 | . . . . . 2 . . . . 6 . . . . 3 . 1 1 . Builder 12 | . . . 1 . 2 . . . . 3 . . . . 3 . 3 . . Tunneler 1 | 1 . . . . . . . . . . . . . . . . . . . Hauler 5 | . 1 . . . . . . . . 1 . . . . . 3 . . . Recycler 6 | . . . 2 . 1 . . . . . . 1 . . . . . 1 1 Operator 7 | . . . . . 1 . . . . . . . . 4 1 . . 1 . Drone 1 | . . . . . . . . . 1 . . . . . . . . . . Turret 2 | . . 2 . . . . . . . . . . . . . . . . . Watcher 2 | . . . . . . . . . . . . . 1 . 1 . . . . Swarmer 52 | . 3 7 1 . 10 . 3 . . 9 . 9 . . . 1 4 5 . Cutter 3 | . . . . . . . . . . . . . . . . . . 3 . Grunt 52 | . . 2 1 . 15 . . . . 20 . 3 . . 3 . 8 . . Brawler 4 | . . . 1 . 2 . . . . 1 . . . . . . . . . Duelist 3 | . . . . . 2 . . . . . . . . . . . 1 . . Protector 2 | . . . . . . . . . . . . . . . 1 . 1 . . Researcher 1 | . . . . . . . . . . . . . . . . . . . 1 Sentry 19 | . . 1 5 . . . 1 . . . . 4 . 2 3 . . 3 . Specialist 2 | . . . . . . . . . . 2 . . . . . . . . . Hunter 14 | . . . . . 3 . . . . 4 . 1 . . 2 . 4 . . Programmer 14 | . . . 1 . 4 . . . . 6 . . . . . . 2 1 . Heavy 1 | . . . . . . . . . . 1 . . . . . . . . . Cetus Guard 3 | . . . . . . . . . . . . . 3 . . . . . . Enhanced Grunt 4 | . . . . . . . . 4 . . . . . . . . . . . Lightning 1 | . . . . . . . . . . . . . . . 1 . . . . Artisan 3 | . . 3 . . . . . . . . . . . . . . . . . Subdweller 10 | . . 10 . . . . . . . . . . . . . . . . . Thug 1 | . . . . . . . . . . . . 1 . . . . . . . Best Kill Streak 18 | 1 3 6 7 . 18 . 3 1 1 10 . 6 2 3 11 1 5 9 2 Combat Bots Only 15 | . 3 4 5 . 15 . 3 1 1 8 . 6 2 2 7 1 5 8 . Max Kills in Single Turn 7 | 1 1 3 2 . 2 . 1 1 1 7 . 2 1 1 3 1 1 1 2 Gunslinging 1 | . . . . . . . . . . . . 1 . . 1 . . . . Exploded 3 | . . 3 . . 2 . . . . 1 . . . . . . . . . Melee 1 | . . . . . . . . 1 . 1 . 1 . . . . 1 1 . Uniques/NPCs Destroyed . | . . . . . . . . . . . . . . . . . . . . Combat | -11 -10 -10 -9 -9 -6 -6 -6 -6 -5 -5 -4 -4 -4 -4 -4 -3 -3 -2 -2 -------- Run | Yrd Mat Sub Rec Scr Fac Low Low Dat Pro Fac Fac Ext Cet Arc Hub Res Qua Res Tes Hostile Shots Fired 1881 | . 19 80 50 . 221 . 70 28 17 285 53 140 24 19 187 110 288 228 62 Missed 623 | . 2 28 13 . 49 . 30 6 5 93 16 48 9 12 42 42 125 71 32 Hits 1258 | . 17 52 37 . 172 . 40 22 12 192 37 92 15 7 145 68 163 157 30 Melee 24 | . . . 2 . 2 . . . . 5 . . . . . . 5 10 . Projectile 1234 | . 17 52 35 . 170 . 40 22 12 187 37 92 15 7 145 68 158 147 30 AOE 4 | . . . . . . . . . . 1 . 2 . . . . . 1 . Critical Strikes 51 | . . . . . 10 . . . . 5 3 1 2 . 13 1 6 8 2 Actively Blocked 25 | . . . . . . . . . . . . 1 2 . 13 1 . 8 . Part Disruptions 2 | . . . . . . . . . . . . . . . . 1 1 . . Damage Taken 25213 | . 141 613 493 . 3086 . 324 811 173 4695 735 1244 184 111 3330 1350 3027 4254 642 Core 4058 | . 17 125 43 . 315 . 9 63 . 787 87 156 . . 524 345 179 900 508 Absorbed by Shields 1324 | . . . . . . . . . . . . 670 191 115 348 . . . . Redirected to Core 11 | . . . . . . . . . . . . . . . . . 11 . . Redirected to Shielding 91 | . . . . . . . . . . . . . . . . 32 59 . . Ignored by Resistances 307 | . . . . . . . 113 194 . . . . . . . . . . . Regen/Repaired (Parts) 830 | . . . . . 11 . . . . 212 . . . . . . 471 136 . Core Remaining (%) 48 | 100 . . . 26 . . . . 54 21 . . . . 33 . 59 . . Volleys Fired 550 | 4 13 101 27 . 84 1 15 4 4 86 1 27 18 18 35 27 56 27 2 Largest 4 | 2 2 2 4 . 3 1 2 1 1 3 1 3 3 3 3 2 2 1 1 Hottest 300 | 60 60 120 216 . 270 90 175 . 90 270 115 195 240 105 105 183 143 68 300 Shots Fired 1004 | 8 26 135 59 . 153 1 23 4 4 197 . 70 45 54 89 29 78 27 2 Gun 436 | 8 26 38 24 . 46 . 13 . . . . 70 45 54 89 11 12 . . Cannon 505 | . . 54 35 . 91 1 10 . 4 197 . . . . . 18 66 27 2 Launcher 18 | . . 2 . . 16 . . . . . . . . . . . . . . Special 45 | . . 41 . . . . . 4 . . . . . . . . . . . Kinetic 376 | 4 13 35 29 . . . . . . . . 27 26 54 89 13 59 27 . Thermal 576 | 4 13 81 25 . 137 1 23 . 4 197 . 43 19 . . 16 11 . 2 Explosive 18 | . . 2 . . 16 . . . . . . . . . . . . . . Electromagnetic 30 | . . 17 5 . . . . . . . . . . . . . 8 . . Robot Hit Streak 22 | 2 8 22 9 . 9 . 7 6 1 15 . 13 7 16 21 9 12 11 . Robot Miss Streak 5 | 2 2 3 3 . 5 . 2 . 3 3 . 2 2 1 1 3 1 2 . Penetration Max 1 | . . . . . . . . . . . . 1 1 1 1 . . . 1 Secondary Targets 5 | . . . . . . . . . . . . 1 . . 4 . . . . Max Gunslinging Chain 1 | . . . . . . . . . . . . 1 . . 1 . . . . Shots Hit Robots 692 | 4 17 67 34 . 88 . 15 29 1 100 . 76 28 44 72 16 76 25 . Core Hits 368 | 3 7 31 14 . 71 . 3 16 1 65 1 36 16 16 33 10 34 10 1 Critical Kills 16 | . . 1 . . 2 . . . . . . 1 3 2 6 . . . 1 Critical Parts Destroyed 27 | . . . . . . . . . . 8 . . 2 6 9 1 . . 1 Critical Strikes 83 | . . 2 . . 5 . 3 8 . 8 . 7 8 12 15 1 10 2 2 Burn 10 | . . . . . 3 . 3 . . . . 1 3 . . . . . . Meltdown 3 | . . 1 . . 2 . . . . . . . . . . . . . . Destroy 36 | . . . . . . . . . . . . 1 5 12 15 1 . . 2 Blast 8 | . . 1 . . . . . . . . . . . . . . 6 1 . Smash 8 | . . . . . . . . . . 8 . . . . . . . . . Sever 18 | . . . . . . . . 8 . . . 5 . . . . 4 1 . Melee Attacks 184 | . . . . . . . . 65 3 30 . 30 3 . . . 34 19 . Impact 25 | . . . . . . . . . 3 22 . . . . . . . . . Slashing 159 | . . . . . . . . 65 . 8 . 30 3 . . . 34 19 . Piercing . | . . . . . . . . . . . . . . . . . . . . Sneak Attacks 9 | . . . . . . . . 1 . . . 1 . . . . 3 4 . Combat Hostiles . | . . . . . . . . . . . . . . . . . . . . Follow-up Attacks 7 | . . . . . . . . 2 . 5 . . . . . . . . . Damage Inflicted 30052 | 40 178 1546 824 . 3901 . 343 972 41 5848 7 2400 857 1356 2727 775 5166 2617 454 Guns 8460 | 36 176 223 237 . 763 . 180 . . . . 1420 857 1356 2289 428 495 . . Cannons 12856 | . . 1034 587 . 1775 . 163 . 41 4206 . . . . . 338 2922 1405 385 Explosions 2962 | . . 289 . . 1363 . . . . 855 . . . . 404 . . . 51 Melee 5633 | . . . . . . . . 972 . 755 . 980 . . . . 1729 1197 . Ramming 141 | 4 2 . . . . . . . . 32 7 . . . 34 9 20 15 18 Kinetic 10634 | 13 89 362 325 . . . . . . . . 637 558 1356 2289 595 3005 1405 . Thermal 10849 | 23 87 819 448 . 2538 . 343 . 41 4781 . 783 299 . . 171 131 . 385 Explosive 1612 | . . 249 . . 1363 . . . . . . . . . . . . . . Electromagnetic 1183 | . . 116 51 . . . . . . 280 . . . . 404 . 281 . 51 Impact 630 | . . . . . . . . . . 630 . . . . . . . . . Slashing 5003 | . . . . . . . . 972 . 125 . 980 . . . . 1729 1197 . Piercing . | . . . . . . . . . . . . . . . . . . . . Highest Corruption 16 | . . . 2 . 4 4 4 4 4 4 . 1 1 1 16 1 12 1 1 Average Corruption 3 | . . . 1 . 1 4 4 4 4 2 . 1 1 1 10 1 6 1 1 Corruption Purged 1 | . . . . . . . . . . . . . . 1 . . . . . Corruption Blocked . | . . . . . . . . . . . . . . . . . . . . Effects 111 | . . . 8 . 17 7 6 20 11 11 . . 5 . 4 1 19 . 2 Message Errors 26 | . . . 4 . 5 1 2 4 2 2 . . 1 . 2 . 3 . . Matter Fused 31 | . . . 2 . 3 3 2 4 6 3 . . 1 . 1 1 5 . . Heat Flow Errors 14 | . . . . . . 1 . 6 1 2 . . 1 . . . 3 . . Energy Discharges 14 | . . . . . 3 1 1 5 1 1 . . . . . . 1 . 1 Data Loss (minor) 9 | . . . 2 . . . . 1 . 2 . . . . . . 3 . 1 Data Loss (major) 9 | . . . . . 3 1 1 . 1 1 . . 1 . . . 1 . . Misfires 3 | . . . . . 1 . . . . . . . 1 . . . 1 . . Misdirections 1 | . . . . . . . . . . . . . . . 1 . . . . Weapon Failures 4 | . . . . . 2 . . . . . . . . . . . 2 . . Overload Shots 1 | . . . . . . . . . . . . . 1 . . . . . . Overflow Damage 2048 | . . 17 8 . 35 . . 21 . 672 . 15 . . 37 4 392 697 150 Projectiles 805 | . . 9 8 . 12 . . . . 159 . . . . . 4 149 314 150 Explosions 162 | . . 8 . . 23 . . . . 94 . . . . 37 . . . . Melee 1081 | . . . . . . . . 21 . 419 . 15 . . . . 243 383 . Knockbacks 37 | . . 5 1 . . . . . . 7 . . . . . . 15 8 1 Impact 8 | . . . . . . . . . . 6 . . . . . . 1 . 1 Kinetic 22 | . . 5 1 . . . . . . . . . . . . . 12 4 . Secondary 7 | . . . . . . . . . . 1 . . . . . . 2 4 . Self-Inflicted Damage 242 | . . 56 . . 37 . . . . 35 . . . . 98 . . 7 9 Shots 8 | . . 2 . . 3 . . . . 2 . . . . 1 . . . . Rammed 11 | 1 1 . . . . . . . . . 5 . . . . 1 . 2 1 Targets Rammed 22 | 1 1 . . . . . . . . 3 5 . . . 2 6 1 2 1 Kicked 10 | . . . . . . . . . . 3 . . . . 1 5 1 . . Crushed 1 | . . . . . . . . . . . . . . . 1 . . . . Highest Temperature 427 | 20 40 6 416 . 427 198 405 174 250 370 84 186 198 144 130 72 172 144 222 Average Temperature 92 | 15 16 1 139 . 132 115 199 108 133 79 45 76 94 31 50 23 55 45 125 Received Heat Transfer 3286 | . . 171 141 . 618 . 54 . 24 789 181 142 8 12 278 135 220 495 18 Effects 5 | . . . 1 . 3 . 1 . . . . . . . . . . . . Shutdowns 1 | . . . . . 1 . . . . . . . . . . . . . . Energy Bleed 3 | . . . 1 . 2 . . . . . . . . . . . . . . Short Circuit 1 | . . . . . . . 1 . . . . . . . . . . . . Siege Activations 2 | . . . . . . . . . . . . 2 . . . . . . . Total Turns 6 | . . . . . . . . . . . . 6 . . . . . . . Longest Duration 3 | . . . . . . . . . . . . 3 . . . . . . . Martial Activations . | . . . . . . . . . . . . . . . . . . . . Shielding Activations . | . . . . . . . . . . . . . . . . . . . . Robots Disrupted . | . . . . . . . . . . . . . . . . . . . . Combat Hostiles . | . . . . . . . . . . . . . . . . . . . . Robots Corrupted 7 | . . . . . . . . . . 5 . . . . . . 1 1 . Combat Hostiles 7 | . . . . . . . . . . 5 . . . . . . 1 1 . Parts Fried 8 | . . . . . . . . . . 5 . . . . 1 . 2 . . Impact Corruptions 16 | . . . . . . . . . . 12 . . . . . . . 4 . Robots Melted 4 | . . 1 . . 2 . 1 . . . . . . . . . . . . Combat Hostiles 3 | . . . . . 2 . 1 . . . . . . . . . . . . Parts Melted 18 | . . 2 1 . 9 . 3 . . 1 . 2 . . . . . . . Heat Transferred 9978 | 50 200 1111 592 . 4279 . 1050 . . 550 . 1221 666 . . 148 111 . . Parts Sabotaged 4 | . . . . . . . . . . 4 . . . . . . . . . Parts Stolen . | . . . . . . . . . . . . . . . . . . . . Parts Stripped . | . . . . . . . . . . . . . . . . . . . . Power Chain Reactions 8 | . . 1 . . . . . . . 6 . . . . . . . . 1 Alert | -11 -10 -10 -9 -9 -6 -6 -6 -6 -5 -5 -4 -4 -4 -4 -4 -3 -3 -2 -2 ------- Run | Yrd Mat Sub Rec Scr Fac Low Low Dat Pro Fac Fac Ext Cet Arc Hub Res Qua Res Tes Maximum Alert Level 4 | . . . . . 2 . . . . 4 2 3 2 1 2 3 3 1 1 Low Security (%) 40 | 100 100 . 100 . 69 . . . . 33 . . . 94 81 1 . . 86 Level 1 18 | . . . . . 17 . . . . 20 . 30 . 5 18 26 . 100 13 Level 2 28 | . . . . . 13 . . . . 10 100 63 100 . . 10 94 . . Level 3 12 | . . . . . . . . . . 35 . 5 . . . 62 5 . . Level 4 . | . . . . . . . . . . . . . . . . . . . . Level 5 . | . . . . . . . . . . . . . . . . . . . . High Security . | . . . . . . . . . . . . . . . . . . . . Max Security . | . . . . . . . . . . . . . . . . . . . . Peak Influence 1129 | 5 60 . 90 . 604 . . . . 1129 637 783 539 204 545 946 787 375 230 Initial 553 | . . . 15 . . . . . . 150 553 296 430 174 49 285 439 253 130 Average 345 | . 12 . 18 . 181 . . . . 531 551 465 475 172 92 667 557 265 147 Influence Increases 9009 | 5 77 365 356 . 1222 . 90 . 20 1819 144 1209 301 149 831 1047 732 397 245 Destroy 0b10 Robot/C 4240 | . 60 240 180 . 820 . 80 . . 860 80 580 160 60 180 260 380 240 60 Destroy 0b10 Robot/NC 305 | 5 5 . 15 . 45 . . . 5 50 . 40 10 20 45 20 25 15 5 Destroy Leader 638 | . 12 20 . . 162 . 10 . . 132 10 74 . . 42 56 60 60 . Allied During Kill 567 | . . . 1 . 39 . . . . . 9 383 101 2 . 32 . . . Successful Hack 280 | . . . 14 . 49 . . . . 8 . 63 . . 20 12 107 7 . Select Force Hacks 170 | . . . 120 . . . . . . . . . . . 50 . . . . Disable Machine 795 | . . . 15 . 45 . . . . 240 . 30 . 45 240 30 75 15 60 Destroy Structure 904 | . . . 11 . 47 . . . . 244 30 24 30 22 254 112 40 45 45 Advance Influence 150 | . . . . . . . . . . 150 . . . . . . . . . Partial Spotted 45 | . . . . . . . . . . . . . . . . 15 15 . 15 Lose Combat Pursuer 915 | . . 105 . . 15 . . . 15 135 15 15 . . . 510 30 15 60 Influence Decreases 8794 | 5 47 362 389 . 630 380 241 61 20 690 666 1047 633 443 429 810 1063 616 262 Entered New Map 2841 | . . 15 18 . . 220 41 61 . . 576 311 339 263 94 260 343 198 102 Time Decay 4216 | 5 47 347 331 . 440 160 180 . 13 490 70 556 214 140 175 410 350 198 90 Lost Part 907 | . . . 20 . 120 . 20 . 7 200 . . . . 160 60 70 220 30 Lost Ally 530 | . . . 20 . 70 . . . . . 20 180 80 40 . 80 . . 40 Purge Threat 300 | . . . . . . . . . . . . . . . . . 300 . . Squads Dispatched 66 | . 2 . . . 13 . . . . 13 4 3 . . 2 19 4 3 3 Investigation 22 | . . . . . 3 . . . . 4 2 1 . . 1 10 . . 1 Extermination 8 | . . . . . 4 . . . . 1 . . . . . 1 1 1 . Reinforcement 21 | . 2 . . . 2 . . . . 4 2 1 . . 1 5 1 1 2 Assault 8 | . . . . . 1 . . . . 4 . 1 . . . . 2 . . Garrison 4 | . . . . . 3 . . . . . . . . . . . . 1 . Intercept 3 | . . . . . . . . . . . . . . . . 3 . . . Searches Triggered . | . . . . . . . . . . . . . . . . . . . . Construction Impeded 4 | . . . . . 1 . . . . 1 . 1 . . 1 . . . . Haulers Reinforced 3 | . . . . . . . . . . 1 . . . . . 1 1 . . Active Scanning Responses . | . . . . . . . . . . . . . . . . . . . . Cargo Convoy Interrupts 1 | . . . . . . . . . . 1 . . . . . . . . . Stealth | -11 -10 -10 -9 -9 -6 -6 -6 -6 -5 -5 -4 -4 -4 -4 -4 -3 -3 -2 -2 --------- Run | Yrd Mat Sub Rec Scr Fac Low Low Dat Pro Fac Fac Ext Cet Arc Hub Res Qua Res Tes Distress Signals 24 | . . . 1 . 2 . . . . 2 . 4 2 . 1 10 1 1 . Communications Jammed 28 | . . . . . . . . . . 28 . . . . . . . . . Distress Signals 26 | . . . . . . . . . . 26 . . . . . . . . . Times Spotted 402 | . 6 28 8 . 48 1 5 4 4 75 13 39 9 16 19 54 28 25 20 Peak Tracking Total 15 | . 4 5 5 . 8 1 4 2 1 15 7 6 5 2 7 12 6 10 12 Tactical Retreats 26 | . . 3 . . 1 . . . 1 4 1 1 . . . 11 2 1 1 Traps | -11 -10 -10 -9 -9 -6 -6 -6 -6 -5 -5 -4 -4 -4 -4 -4 -3 -3 -2 -2 ------- Run | Yrd Mat Sub Rec Scr Fac Low Low Dat Pro Fac Fac Ext Cet Arc Hub Res Qua Res Tes Traps Triggered 13 | . 1 . . . 1 . . . . 2 1 2 . . . 2 1 2 1 Indirectly . | . . . . . . . . . . . . . . . . . . . . Trap Hack Attempts . | . . . . . . . . . . . . . . . . . . . . Triggered . | . . . . . . . . . . . . . . . . . . . . Disarmed . | . . . . . . . . . . . . . . . . . . . . Reprogrammed . | . . . . . . . . . . . . . . . . . . . . Reused . | . . . . . . . . . . . . . . . . . . . . Traps Extracted . | . . . . . . . . . . . . . . . . . . . . Installed . | . . . . . . . . . . . . . . . . . . . . Triggered . | . . . . . . . . . . . . . . . . . . . . Machines | -11 -10 -10 -9 -9 -6 -6 -6 -6 -5 -5 -4 -4 -4 -4 -4 -3 -3 -2 -2 ---------- Run | Yrd Mat Sub Rec Scr Fac Low Low Dat Pro Fac Fac Ext Cet Arc Hub Res Qua Res Tes Machines Disabled 64 | . . 4 1 . 3 1 . . . 16 . 5 1 3 16 2 5 1 6 Max in Single Turn 11 | . . 1 1 . 1 1 . . . 7 . 1 1 1 11 . 1 1 3 Garrison Access 3 | . . . . . . . . . . 1 . . . . . 2 . . . Network Hub 2 | . . . . . . . . . . . . . . . 2 . . . . Machines Repaired . | . . . . . . . . . . . . . . . . . . . . Machines Dismantled . | . . . . . . . . . . . . . . . . . . . . Machines Sabotaged 1 | . . . . . . . . . . . . . . . 1 . . . . Overloaded Fab Kills . | . . . . . . . . . . . . . . . . . . . . Hacking | -11 -10 -10 -9 -9 -6 -6 -6 -6 -5 -5 -4 -4 -4 -4 -4 -3 -3 -2 -2 --------- Run | Yrd Mat Sub Rec Scr Fac Low Low Dat Pro Fac Fac Ext Cet Arc Hub Res Qua Res Tes Machines Accessed 80 | . 1 3 10 4 9 1 . 4 . 8 2 16 1 . 3 11 6 1 . Terminals 42 | . 1 . 6 . 4 . . . . 3 . 16 1 . 3 2 5 1 . Fabricators 2 | . . . . . 1 . . . . . . . . . . 1 . . . Repair Stations 1 | . . . . . . . . . . 1 . . . . . . . . . Recycling Units 18 | . . . 4 . 4 . . . . 3 2 . . . . 5 . . . Scanalyzers 1 | . . . . . . . . . . . . . . . . . 1 . . Garrison Access 4 | . . . . . . . . . . 1 . . . . . 3 . . . Total Hacks 248 | . 3 4 29 43 20 1 . 20 . 13 2 35 1 . 7 26 35 9 . Successful 148 | . 1 4 12 43 9 1 . 20 . 6 2 17 1 . 6 12 9 5 . Failed 100 | . 2 . 17 . 11 . . . . 7 . 18 . . 1 14 26 4 . Catastrophic 18 | . . . . . 2 . . . . 3 . 2 . . . 2 7 2 . Database Lockouts . | . . . . . . . . . . . . . . . . . . . . Manual 96 | . . . 24 . 11 . . . . 8 2 11 . . 4 12 18 6 . Terminals 139 | . 3 . 25 . 13 . . . . 6 . 35 1 . 7 6 34 9 . Fabricators 7 | . . . . . 3 . . . . . . . . . . 4 . . . Repair Stations 2 | . . . . . . . . . . 2 . . . . . . . . . Recycling Units 21 | . . . 4 . 4 . . . . 3 2 . . . . 8 . . . Scanalyzers 1 | . . . . . . . . . . . . . . . . . 1 . . Garrison Access 10 | . . . . . . . . . . 2 . . . . . 8 . . . Terminal Hacks 109 | . 1 4 3 43 4 1 . 20 . 1 . 11 1 . 3 4 8 5 . Record 44 | . . 1 . 37 . 1 . 3 . . . . 1 . . . 1 . . Part Schematic 12 | . . . 1 . . . . 10 . . . . . . . 1 . . . Robot Schematic 4 | . . . . . . . . 4 . . . . . . . . . . . Robot Analysis 6 | . . . . 6 . . . . . . . . . . . . . . . Prototype ID Bank 7 | . 1 . 1 . 1 . . 3 . . . 1 . . . . . . . Open Door 9 | . . 1 . . . . . . . . . 8 . . . . . . . Level Access Points 1 | . . . . . . . . . . . . . . . . . 1 . . Branch Access Points 4 | . . . . . 1 . . . . 1 . . . . . 1 . 1 . Emergency Access Points 1 | . . . . . . . . . . . . . . . . . . 1 . Alert Level 1 | . . . . . . . . . . . . . . . . . . 1 . Unreport Threat 2 | . . . . . . . . . . . . . . . . . 2 . . Locate Traps 6 | . . . . . 1 . . . . . . 1 . . 2 . 1 1 . Hauler Manifests 2 | . . . . . . . . . . . . . . . . 1 1 . . Registered Components 3 | . . . 1 . . . . . . . . 1 . . . . 1 . . Registered Prototypes 2 | . . . . . . . . . . . . . . . 1 . 1 . . Zone Layout 3 | . . . . . 1 . . . . . . . . . . 1 . 1 . Proto ID Catalog 1 | . . 1 . . . . . . . . . . . . . . . . . Release Object 1 | . . 1 . . . . . . . . . . . . . . . . . Fabricator Hacks 1 | . . . . . 1 . . . . . . . . . . . . . . Network Status 1 | . . . . . 1 . . . . . . . . . . . . . . Repair Station Hacks . | . . . . . . . . . . . . . . . . . . . . Recycling Unit Hacks . | . . . . . . . . . . . . . . . . . . . . Scanalyzer . | . . . . . . . . . . . . . . . . . . . . Garrison Access Hacks 3 | . . . . . . . . . . 1 . . . . . 2 . . . Seal Access 3 | . . . . . . . . . . 1 . . . . . 2 . . . Unauthorized Hacks 35 | . . . 9 . 4 . . . . 4 2 6 . . 3 6 1 . . Terminals 14 | . . . 5 . . . . . . . . 6 . . 3 . . . . Assimilate 1 | . . . . . . . . . . . . 1 . . . . . . . Botnet 6 | . . . . . . . . . . . . 4 . . 2 . . . . Operators 1 | . . . . . . . . . . . . 1 . . . . . . . Skim 5 | . . . 5 . . . . . . . . . . . . . . . . Sabotage 1 | . . . . . . . . . . . . . . . 1 . . . . Fabricators 2 | . . . . . 1 . . . . . . . . . . 1 . . . Haulers 2 | . . . . . 1 . . . . . . . . . . 1 . . . Repair Stations 1 | . . . . . . . . . . 1 . . . . . . . . . Patch 1 | . . . . . . . . . . 1 . . . . . . . . . Recycling Units 17 | . . . 4 . 3 . . . . 3 2 . . . . 5 . . . Tunnel 4 | . . . 4 . . . . . . . . . . . . . . . . Fedlink 7 | . . . . . 2 . . . . 3 1 . . . . 1 . . . Scrapoids 1 | . . . . . 1 . . . . . . . . . . . . . . Scraphulk 5 | . . . . . . . . . . . 1 . . . . 4 . . . Scanalyzers 1 | . . . . . . . . . . . . . . . . . 1 . . Researchers 1 | . . . . . . . . . . . . . . . . . 1 . . Garrison Access . | . . . . . . . . . . . . . . . . . . . . Data Cores Recovered 3 | . . . . . 1 . . . . . . 1 . . 1 . . . . Used 2 | . . . . . 1 . . . . . . . . . 1 . . . . Hacking Detections 36 | . 1 . 6 . 6 . . . . 4 . 9 . . 2 2 5 1 . Full Trace Events 2 | . . . . . . . . . . . . 1 . . . 1 . . . Feedback Events . | . . . . . . . . . . . . . . . . . . . . Feedback Blocked . | . . . . . . . . . . . . . . . . . . . . Robot Schematics Acquired 4 | . . . . . . . . 4 . . . . . . . . . . . Robots Built . | . . . . . . . . . . . . . . . . . . . . Authchips . | . . . . . . . . . . . . . . . . . . . . Time . | . . . . . . . . . . . . . . . . . . . . Total Robot Build Rating . | . . . . . . . . . . . . . . . . . . . . Part Schematics Acquired 23 | . . . 1 . . . . 10 . . 1 7 2 1 . 1 . . . Parts Built . | . . . . . . . . . . . . . . . . . . . . Authchips . | . . . . . . . . . . . . . . . . . . . . Time . | . . . . . . . . . . . . . . . . . . . . Total Part Build Rating . | . . . . . . . . . . . . . . . . . . . . Parts Repaired . | . . . . . . . . . . . . . . . . . . . . Time . | . . . . . . . . . . . . . . . . . . . . Parts Recycled . | . . . . . . . . . . . . . . . . . . . . Recycled Matter . | . . . . . . . . . . . . . . . . . . . . Retrieved Matter . | . . . . . . . . . . . . . . . . . . . . Retrieved Components . | . . . . . . . . . . . . . . . . . . . . Parts Scanalyzed . | . . . . . . . . . . . . . . . . . . . . Part Schematics Acquired . | . . . . . . . . . . . . . . . . . . . . Parts Damaged . | . . . . . . . . . . . . . . . . . . . . Bothacking | -11 -10 -10 -9 -9 -6 -6 -6 -6 -5 -5 -4 -4 -4 -4 -4 -3 -3 -2 -2 ------------ Run | Yrd Mat Sub Rec Scr Fac Low Low Dat Pro Fac Fac Ext Cet Arc Hub Res Qua Res Tes Used RIF Installer . | . . . . . . . . . . . . . . . . . . . . Robots Hacked . | . . . . . . . . . . . . . . . . . . . . Non-combat . | . . . . . . . . . . . . . . . . . . . . Combat . | . . . . . . . . . . . . . . . . . . . . Robot Hacks Applied . | . . . . . . . . . . . . . . . . . . . . Relay Couplers Released . | . . . . . . . . . . . . . . . . . . . . Fabnet Peak Effective % . | . . . . . . . . . . . . . . . . . . . . Robots Rewired 11 | . . . 2 . . . . . . . . 7 . . . . . . 2 Allies Hacked . | . . . . . . . . . . . . . . . . . . . . Hacks Repelled . | . . . . . . . . . . . . . . . . . . . . Allies | -11 -10 -10 -9 -9 -6 -6 -6 -6 -5 -5 -4 -4 -4 -4 -4 -3 -3 -2 -2 -------- Run | Yrd Mat Sub Rec Scr Fac Low Low Dat Pro Fac Fac Ext Cet Arc Hub Res Qua Res Tes Total Allies 34 | . . . 2 . 5 . . . . . 1 20 . . . 4 . . 2 Largest Group 16 | . . . 2 1 6 . . . . . 1 16 8 2 . 1 . . 1 Highest-Rated Group 663 | . . . 18 11 153 . . . . . 123 663 306 83 . 139 . . 159 Highest-Rated Ally 159 | . . . 10 11 32 . . . . . 123 51 51 51 . 139 . . 159 Total Orders 5 | . . . . 3 2 . . . . . . . . . . . . . . STAY 1 | . . . . . 1 . . . . . . . . . . . . . . FOLLOW 1 | . . . . 1 . . . . . . . . . . . . . . . DROP 1 | . . . . . 1 . . . . . . . . . . . . . . PICKUP 1 | . . . . 1 . . . . . . . . . . . . . . . COLLECT 1 | . . . . 1 . . . . . . . . . . . . . . . Ally Attacks 271 | . . . 1 . 47 . . . . . 19 113 30 9 . 43 . . 9 Total Damage 8803 | . . . 11 . 840 . . . . . 670 2886 855 224 . 2743 . . 574 Kills 59 | . . . . . 10 . . . . . 4 21 8 1 . 13 . . 2 Allies Corrupted . | . . . . . . . . . . . . . . . . . . . . Allies Melted 2 | . . . . . . . . . . 1 . . . . . 1 . . . Intel | -11 -10 -10 -9 -9 -6 -6 -6 -6 -5 -5 -4 -4 -4 -4 -4 -3 -3 -2 -2 ------- Run | Yrd Mat Sub Rec Scr Fac Low Low Dat Pro Fac Fac Ext Cet Arc Hub Res Qua Res Tes Active Infowar (turns) 9268 | 20 293 3704 . . 1332 . 328 428 585 673 . . . . . 509 789 415 192 Optics 3164 | . . . . . 1259 . . . . . . . . . . 509 789 415 192 Structural 180 | . . . . . . . . . . 155 . . . . . 20 . 5 . Seismic 5602 | 20 293 3704 . . 501 . 279 249 556 . . . . . . . . . . Cloaking 638 | . . . . . . . . 178 460 . . . . . . . . . . Jamming 1027 | . . . . . 72 . 49 54 25 673 . . . . . . . 154 . Robot Analysis Total 157 | . . . . 6 . . . 151 . . . . . . . . . . . Derelict Logs Recovered 11 | . . 2 . 5 . 1 2 . 1 . . . . . . . . . . Drone Launches . | . . . . . . . . . . . . . . . . . . . . Drone Recoveries . | . . . . . . . . . . . . . . . . . . . . Exploration | -11 -10 -10 -9 -9 -6 -6 -6 -6 -5 -5 -4 -4 -4 -4 -4 -3 -3 -2 -2 ------------- Run | Yrd Mat Sub Rec Scr Fac Low Low Dat Pro Fac Fac Ext Cet Arc Hub Res Qua Res Tes Turns Passed 26434 | 101 293 5353 1267 9122 1550 329 362 843 641 1293 152 1627 446 296 365 998 789 415 192 Spaces Moved 12176 | 50 156 2663 517 2568 767 239 248 404 400 500 168 844 218 138 165 1184 435 223 289 Core 1619 | 7 . . . 286 . . . . . 65 168 35 . . 25 827 . 7 199 Treads 3496 | 43 156 1992 . . . . . . . . . 809 218 138 140 . . . . Legs 877 | . . . . . . . . . . 256 . . . . . 357 264 . . Wheels 6094 | . . 671 517 2282 767 239 248 404 400 179 . . . . . . 171 216 . Hover . | . . . . . . . . . . . . . . . . . . . . Flight 90 | . . . . . . . . . . . . . . . . . . . 90 Fastest Speed 30 | 50 160 160 191 50 110 110 120 120 146 50 50 50 160 160 50 50 106 50 30 Average Speed 187 | 147 160 176 217 347 164 129 122 131 146 165 50 155 160 160 143 70 115 118 43 Slowest Speed 3450 | 160 160 640 275 3450 270 130 130 146 146 190 50 160 160 160 160 250 178 170 50 Overloaded Moves . | . . . . . . . . . . . . . . . . . . . . Propulsion Burnouts . | . . . . . . . . . . . . . . . . . . . . Robots Hopped 2 | . . . . . . . . . . . . . . . . . . . 2 Potential Cave-ins 2 | . . . . . . . . . . . . . . . . . . 2 . Cave-ins Triggered 1 | . . . . . . . . . . . . . . . . . . 1 . Exploration Rate (%) 48 | 4 28 95 98 93 25 47 50 81 47 20 7 82 57 71 23 39 57 10 44 Regions Visited 19 Branch Regions 13 Pre-discovered Areas 34 | . . . 5 4 1 . 1 23 . . . . . . . . . . . Known Exits Taken 9 | . . . . . 1 1 1 . 1 . 1 . . . 1 1 1 1 . Unknown Exits Taken 10 | 1 1 1 1 1 . . . 1 . 1 . 1 1 1 . . . . . Scrap Searched 20 | . . 2 . 12 . 3 3 . . . . . . . . . . . . Spaces Dug 74 | . . 13 . . 5 . . . 3 24 . . 1 . 2 8 11 7 . Terrain Destroyed 509 | . . 17 11 . 51 . 5 . 5 146 . 2 10 16 170 11 19 17 29 Melee 24 | . . . . . . . . . 3 5 . . . . . . 9 7 . Projectile 203 | . . 2 11 . 13 . 5 . 2 73 . 2 10 16 27 11 10 10 11 AOE 282 | . . 15 . . 38 . . . . 68 . . . . 143 . . . 18 Terrain Rammed . | . . . . . . . . . . . . . . . . . . . . Walls Destroyed . | . . . . . . . . . . . . . . . . . . . . Machines Disabled . | . . . . . . . . . . . . . . . . . . . . Actions | -11 -10 -10 -9 -9 -6 -6 -6 -6 -5 -5 -4 -4 -4 -4 -4 -3 -3 -2 -2 --------- Run | Yrd Mat Sub Rec Scr Fac Low Low Dat Pro Fac Fac Ext Cet Arc Hub Res Qua Res Tes Total 14548 | 67 175 3110 607 2786 937 261 283 628 445 724 230 1053 281 174 222 1327 581 304 353 Wait 816 | . 1 245 11 122 12 5 5 89 35 52 49 73 10 6 6 54 9 16 16 Move 12154 | 50 155 2662 516 2567 766 238 247 403 399 499 167 843 217 137 164 1183 434 222 285 Hop 2 | . . . . . . . . . . . . . . . . . . . 2 Pick Up 198 | 6 3 28 13 60 19 6 4 21 . 8 1 1 4 . 1 9 10 2 2 Fast Attach 104 | 6 1 7 . 1 6 2 . 8 . 2 4 20 5 4 4 21 11 . 2 Attach 102 | 1 . 10 4 3 20 . 1 8 . 13 1 1 . . 4 12 10 10 4 Detach 52 | . . 11 . 1 4 . 1 5 . . . . 1 2 2 10 9 1 5 Swap 111 | . 1 27 4 2 12 1 6 13 4 21 . 2 9 3 1 2 2 1 . Drop 162 | . . 19 6 30 14 7 3 21 . 18 2 8 14 4 2 3 5 4 2 Fire 550 | 4 13 101 27 . 84 1 15 4 4 86 1 27 18 18 35 27 56 27 2 Melee 167 | . . . . . . . . 56 3 22 . 30 3 . . . 34 19 . Ram 3 | . . . . . . . . . . . . . . . 1 . . 1 1 Kick 10 | . . . . . . . . . . 3 . . . . 1 5 1 . . Crush 8 | . 1 . . . . . . . . . 5 . . . 1 1 . . . Escape Stasis 2 | . . . . . . . . . . . . 1 . . . . . 1 . Rewire 106 | . . . 26 . . . 1 . . . . 47 . . . . . . 32 Trap . | . . . . . . . . . . . . . . . . . . . . Miscellaneous 1 | . . . . . . 1 . . . . . . . . . . . . . Route ------- -11/Scrapyard -10/Materials (discovered 2 exits: [*Min] / *Sub) -10/Subcaves (discovered 3 exits: [*Mat x2] / *Rec) -9/Recycling (discovered 2 exits: [*Fac] / *Scr) -9/Scraptown (discovered 2 exits: *Fac x2) -6/Factory (discovered 4 exits: Fac x2 / *Low x2) -6/Lower Caves -6/Lower Caves (discovered 2 exits: Fac / *Dat) -6/Data Miner -5/Proximity Caves -5/Factory (discovered 3 exits: *Fac / Upp x2) -4/Factory (discovered 7 exits: Res x4 / *Ext x2 / Arm) -4/Extension (discovered 2 exits: *Res / *Cet) -4/Cetus (discovered 2 exits: *Res / [*Arc]) -4/Archives (discovered 2 exits: *Res / *Hub) -4/Hub_04(d) (discovered 2 exits: *Res x2) -3/Research (discovered 4 exits: Res x2 / *Qua x2) -3/Quarantine -2/Research (discovered 2 exits: *Tes x2) -2/Testing History --------- Turn | Location | Event 19 | -11/Scrapyard | Discovered new exit (range 15) 102 | -11/Scrapyard | Entered Materials 303 | -10/Materials | Build established: Mutant 367 | -10/Materials | Discovered new exit (range 16) 384 | -10/Materials | Discovered new exit (range 8) 395 | -10/Materials | Entered Subcaves 504 | -10/Subcaves | Discovered new exit (range 16) 767 | -10/Subcaves | Learned Materials stockpile data 824 | -10/Subcaves | Shifting Twisted Machinery released Battle Cannon 863 | -10/Subcaves | Discovered new exit (range 12) 2529 | -10/Subcaves | Discovered new exit (range 6) 2625 | -10/Subcaves | Learned Materials emergency access door positions 2763 | -10/Subcaves | Shifting Twisted Machinery released Battle Cannon 3304 | -10/Subcaves | Build established: Scavenger-Mutant 3457 | -10/Subcaves | Shifting Twisted Machinery released Piercing Trap 3536 | -10/Subcaves | Core integrity fell below 50% 3575 | -10/Subcaves | A swath of the cavern ceiling suddenly collapsed 3985 | -10/Subcaves | Visited 4L-MR0's lab 4011 | -10/Subcaves | Found Tower Shield 4013 | -10/Subcaves | Attached Tower Shield, gained temporary slots: Power, Propulsion x2, Utility x2, Weapon x2 4720 | -10/Subcaves | Build established: Hauler-Mutant 4893 | -10/Subcaves | Found SUBCON Basin 5748 | -10/Subcaves | Entered Recycling 5897 | -9/Recycling | Scanned before Scraplab entrance 6175 | -9/Recycling | Discovered new exit (range 15) 6207 | -9/Recycling | Learned location of 3 exits from Materials 6416 | -9/Recycling | Learned 2 Storage zone layouts 6466 | -9/Recycling | Learned location of 3 exits from Materials 6508 | -9/Recycling | Learned location of 1 exit from Storage 6583 | -9/Recycling | Learned location of Zion (-7) 6638 | -9/Recycling | Learned location of 2 exits from Materials 6702 | -9/Recycling | Learned Materials trap positions 6970 | -9/Recycling | Entered Scraplab 6988 | -9/Recycling | Discovered new exit (range 2) 7015 | -9/Recycling | Entered Scraptown 7015 | -9/Scraptown | Accompanied by 1 ally 7015 | -9/Scraptown | System corruption cleaned by C-Scrubber 7048 | -9/Scraptown | Heard Great Nut preacher, LISTEN AND RECITE! 7487 | -9/Scraptown | Scanned Subdweller tech in exchange for log data 7494 | -9/Scraptown | Learned location of Warlord (-5) 7496 | -9/Scraptown | Learned location of 1 exit from Factory 7503 | -9/Scraptown | Learned 8 Research zone layouts 7533 | -9/Scraptown | Discovered new exit (range 7) 7678 | -9/Scraptown | Visited Cyclists 7705 | -9/Scraptown | Visited CPS Storage 7751 | -9/Scraptown | Visited Spacefarers 7781 | -9/Scraptown | Visited Bundlers 8071 | -9/Scraptown | Visited Fellowship of the Rings 8147 | -9/Scraptown | Visited Shadow of the Wyrm 8161 | -9/Scraptown | Visited Comm Corps 8308 | -9/Scraptown | Visited UFD Registry 12227 | -9/Scraptown | Registered with UFD as "Flashhead" 12289 | -9/Scraptown | Visited Observation Area 12322 | -9/Scraptown | Visited Derelict Rescue Squad 12342 | -9/Scraptown | Found DRS Beacon 12385 | -9/Scraptown | Visited Curators Association 12497 | -9/Scraptown | Delivered Scrap Shield to a Scientist 12711 | -9/Scraptown | Visited DA-N13 Charitable Foundation 12720 | -9/Scraptown | Found DCF Scrap (29 items) 12771 | -9/Scraptown | Visited Analyses Database 12819 | -9/Scraptown | Visited Scrapoid Research Area 12881 | -9/Scraptown | Visited Chapter 10 12923 | -9/Scraptown | Visited LU-1G1's Boring Crew 12962 | -9/Scraptown | Visited Modified Component R&D 13266 | -9/Scraptown | Visited Cartography Club 13344 | -9/Scraptown | Found Surveybot 17 Chip 13378 | -9/Scraptown | Found Deep Structural Scanner 13383 | -9/Scraptown | Learned location of Upper Caves (-4) 13383 | -9/Scraptown | Learned 8 Materials zone layouts 13383 | -9/Scraptown | Learned 12 Materials zone layouts 13383 | -9/Scraptown | Learned 16 Materials zone layouts 13383 | -9/Scraptown | Learned 20 Factory zone layouts 13383 | -9/Scraptown | Learned 12 Lower Caves zone layouts 13383 | -9/Scraptown | Learned 16 Lower Caves zone layouts 13383 | -9/Scraptown | Learned 20 Upper Caves zone layouts 13383 | -9/Scraptown | Learned 20 Proximity Caves zone layouts 13383 | -9/Scraptown | Learned 4 Hub_04(d) zone layouts 13383 | -9/Scraptown | Learned 4 Armory zone layouts 13383 | -9/Scraptown | Learned location of 1 exit from Factory 13383 | -9/Scraptown | Learned location of 3 exits from Lower Caves 14062 | -9/Scraptown | Entered Cyclist Reading Room 14952 | -9/Scraptown | Guru changed UFD alias to "Steelmech" 15670 | -9/Scraptown | Found Scrap Suit 16018 | -9/Scraptown | Met Optimus 16018 | -9/Scraptown | Accepted into 0bPrime 16124 | -9/Scraptown | Discovered new exit (range 5) 16137 | -9/Scraptown | Entered Factory 16137 | -6/Factory | Accompanied by 1 ally 16137 | -6/Factory | Evolved 8 slots: Power x1, Propulsion x1, Utility x5, Weapon x1 16138 | -6/Factory | Identified exit to Lower Caves 16139 | -6/Factory | Identified exit to Factory 16452 | -6/Factory | Build established: Hauler-Scrapper 16532 | -6/Factory | Scrapoid reinforcements arrived 16709 | -6/Factory | Found Scrap Suit 16713 | -6/Factory | Lost 3 allies 16716 | -6/Factory | Found Scrap Suit 17240 | -6/Factory | Loaded intel: 7 recycling unit locations 17253 | -6/Factory | Spotted B-75 Beast 17372 | -6/Factory | Learned location of Protoforge (-3) 17403 | -6/Factory | Garrison activated, responded to threat 17530 | -6/Factory | Lost 8 parts (1p1n3u3w) 17537 | -6/Factory | First assault squad dispatched 17549 | -6/Factory | Destroyed 15 combat bots 17612 | -6/Factory | Lost 3 parts (1p2w) 17687 | -6/Factory | Entered Lower Caves 17688 | -6/Lower Caves | Identified exit to Lower Caves 17688 | -6/Lower Caves | Activated DRS Beacon 17689 | -6/Lower Caves | UFD Scientist delivered a prototype 17690 | -6/Lower Caves | Found Prototype Protection 17697 | -6/Lower Caves | Learned location of 1 exit from Factory 17699 | -6/Lower Caves | Found DCF Scrap (12 items) 17858 | -6/Lower Caves | Build established: Scavenger-Scrapper 17897 | -6/Lower Caves | Encountered a Warlord checkpoint 17943 | -6/Lower Caves | Found Alien Artifact 18016 | -6/Lower Caves | Entered another Lower Caves area 18017 | -6/Lower Caves | Identified exit to Data Miner 18023 | -6/Lower Caves | Found DCF Scrap (12 items) 18164 | -6/Lower Caves | Attracted the attention of an 0b10 checkpoint 18270 | -6/Lower Caves | Learned Factory non-interactive machine intel 18378 | -6/Lower Caves | Entered Data Miner 18378 | -6/Data Miner | Discovered new exit (range 6) 18401 | -6/Data Miner | Met Data Miner 18431 | -6/Data Miner | Learned location of Section 7 (-3) 18431 | -6/Data Miner | Acquired the access code to Warlord's prototype stash 18453 | -6/Data Miner | Received God Mode back door access code from Data Miner 18481 | -6/Data Miner | Interfaced with the Data Conduit 18647 | -6/Data Miner | Identified Enh. Scrap Shield 18693 | -6/Data Miner | Found Exp. Thermal Shield 18888 | -6/Data Miner | Found Exp. Thermal Shield 18987 | -6/Data Miner | Build established: Derelict-Gladiator 19221 | -6/Data Miner | Entered Proximity Caves 19315 | -5/Proximity Caves | Build established: Scavenger-Mutant 19363 | -5/Proximity Caves | Spotter reported a threat 19699 | -5/Proximity Caves | Spotted B-75 Beast 19862 | -5/Proximity Caves | Entered Factory 19862 | -5/Factory | Evolved 2 slots: Propulsion x2 19863 | -5/Factory | Identified exit to Upper Caves 19864 | -5/Factory | Loaded intel: 320 machine locations 19865 | -5/Factory | Loaded intel: 266 non-interactive machine locations 19901 | -5/Factory | Loaded intel: 8 recycling unit locations 20522 | -5/Factory | Build established: Scavenger-Tank 20583 | -5/Factory | Lost 3 parts (3u) 20589 | -5/Factory | Found Imp. Powered Armor 20600 | -5/Factory | Destroyed 8 combat bots 20706 | -5/Factory | Cargo convoy interrupted 20762 | -5/Factory | First assault squad dispatched 20805 | -5/Factory | Destroyed 7 combat bots 21113 | -5/Factory | Identified Dimensional Node Initializer 21113 | -5/Factory | Initialized slip node 21146 | -5/Factory | Core integrity fell below 50% 21148 | -5/Factory | Discovered new exit (range 15) 21152 | -5/Factory | Lost 12 parts (2p3n5u2w) 21155 | -5/Factory | Entered another Factory area 21155 | -4/Factory | Evolved 2 slots: Utility x2 21156 | -4/Factory | Identified exit to Research 21156 | -4/Factory | Identified exit to Extension 21156 | -4/Factory | Identified exit to Armory 21157 | -4/Factory | Loaded intel: 290 machine locations 21174 | -4/Factory | Spotted B-86 Titan 21180 | -4/Factory | Loaded intel: 8 recycling unit locations 21249 | -4/Factory | Scraphulk reinforcements arrived? 21285 | -4/Factory | Discovered exit to Extension (range 16) 21307 | -4/Factory | Entered Extension 21308 | -4/Extension | Loaded intel: 42 machine locations 21362 | -4/Extension | Tech Extrapolator generated special schematic: Energy Deflector 21398 | -4/Extension | Build established: Mutant 21461 | -4/Extension | Tech Extrapolator generated special schematic: Deep Structural Scanner 21740 | -4/Extension | Rescued a captive Derelict 21740 | -4/Extension | Rescued a captive Derelict 21841 | -4/Extension | Build established: Scavenger-Mutant 21920 | -4/Extension | Rescued a captive Derelict 21952 | -4/Extension | Rescued a captive Derelict 21952 | -4/Extension | Rescued a captive Derelict 21996 | -4/Extension | Rescued a captive Derelict 21997 | -4/Extension | Rescued a captive Derelict 22033 | -4/Extension | Rescued a captive Derelict 22035 | -4/Extension | Rescued a captive Derelict 22187 | -4/Extension | Build established: Scavenger-Tank 22263 | -4/Extension | Spotted B-86 Titan 22275 | -4/Extension | Allies destroyed B-86 Titan 22290 | -4/Extension | Spotted B-86 Titan 22299 | -4/Extension | Allies destroyed B-86 Titan 22379 | -4/Extension | Rescued a captive Derelict 22568 | -4/Extension | Rescued a captive Derelict 22768 | -4/Extension | Rescued a captive Derelict 22769 | -4/Extension | Rescued a captive Derelict 22807 | -4/Extension | First assault squad dispatched 22875 | -4/Extension | Lost 8 allies 22878 | -4/Extension | Discovered exit to Research (range 10) 22880 | -4/Extension | Discovered new exit (range 6) 22934 | -4/Extension | Entered Cetus 22934 | -4/Cetus | Accompanied by 8 allies 22935 | -4/Cetus | Loaded intel: 24 machine locations 22962 | -4/Cetus | Spotted Cetus Guard 22962 | -4/Cetus | Spotted Cetus Guard 22965 | -4/Cetus | Allies destroyed Cetus Guard 22966 | -4/Cetus | Spotted Cetus Guard 22971 | -4/Cetus | Destroyed Cetus Guard 22979 | -4/Cetus | Allies destroyed Cetus Guard 23024 | -4/Cetus | Lost 3 allies 23178 | -4/Cetus | Found a strange terminal 23202 | -4/Cetus | Discovered new exit (range 16) 23231 | -4/Cetus | Spotted Cetus Guard 23234 | -4/Cetus | Spotted Cetus Guard 23237 | -4/Cetus | Spotted Cetus Guard 23242 | -4/Cetus | Destroyed Cetus Guard 23247 | -4/Cetus | Allies destroyed Cetus Guard 23251 | -4/Cetus | Destroyed Cetus Guard 23255 | -4/Cetus | Spotted Cetus Guard 23259 | -4/Cetus | Allies destroyed Cetus Guard 23279 | -4/Cetus | Discovered exit to Research (range 15) 23284 | -4/Cetus | Lost 3 allies 23287 | -4/Cetus | Met Revision 17 23380 | -4/Cetus | Entered Archives 23380 | -4/Archives | Accompanied by 2 allies 23381 | -4/Archives | Loaded intel: 8 machine locations 23493 | -4/Archives | Discovered exit to Research (range 15) 23657 | -4/Archives | Discovered new exit (range 13) 23676 | -4/Archives | Entered Hub_04(d) 23678 | -4/Hub_04(d) | Loaded intel: 103 machine locations 23884 | -4/Hub_04(d) | Discovered exit to Research (range 13) 23886 | -4/Hub_04(d) | Discovered exit to Research (range 10) 23925 | -4/Hub_04(d) | Network Hub disabled 23946 | -4/Hub_04(d) | Spotted Lightning 23947 | -4/Hub_04(d) | Spotted Lightning 23950 | -4/Hub_04(d) | Spotted Lightning 23985 | -4/Hub_04(d) | Destroyed Lightning 23987 | -4/Hub_04(d) | System corruption reached 10% 24006 | -4/Hub_04(d) | Destroyed 7 combat bots 24022 | -4/Hub_04(d) | Core integrity fell below 50% 24024 | -4/Hub_04(d) | Found Prototype Energy Cannon 24039 | -4/Hub_04(d) | Network Hub disabled 24041 | -4/Hub_04(d) | Entered Research 24041 | -3/Research | Evolved 2 slots: Propulsion x1, Utility x1 24042 | -3/Research | Identified exit to Research 24043 | -3/Research | Loaded intel: 138 machine locations 24049 | -3/Research | Identified exit to Quarantine 24070 | -3/Research | Lost 16 parts (2p4n5u5w) 24167 | -3/Research | Spotted B-86 Titan 24190 | -3/Research | Scraphulk reinforcements arrived 24238 | -3/Research | Loaded intel: 5 recycling unit locations 24241 | -3/Research | Revision forces began assault on 0b10 24283 | -3/Research | Spotted B-86 Titan 24315 | -3/Research | Build established: Hacker-Mutant 24348 | -3/Research | Scraphulk reinforcements arrived 24355 | -3/Research | Spotted B-86 Titan 24420 | -3/Research | Scraphulk reinforcements arrived? 24426 | -3/Research | Intercept squad dispatched 24450 | -3/Research | Scraphulk reinforcements arrived? 24485 | -3/Research | Spotted B-90 Cyclops 24683 | -3/Research | Intercept squad dispatched 24732 | -3/Research | Spotted Tracker 24741 | -3/Research | Research terminal network offline 24760 | -3/Research | Found Exp. Phase Shifter 24778 | -3/Research | Spotted Combat Programmer 25039 | -3/Research | Entered Quarantine 25040 | -3/Quarantine | Loaded intel: 63 machine locations 25086 | -3/Quarantine | Found Alien Artifact 25114 | -3/Quarantine | Found Alien Slashing Weapon 25145 | -3/Quarantine | Identified Sigix Broadsword 25254 | -3/Quarantine | Lost 4 parts (2p1n1w) 25285 | -3/Quarantine | Found Alien Artifact 25287 | -3/Quarantine | Identified Phase Armor 25289 | -3/Quarantine | First assault squad dispatched 25361 | -3/Quarantine | Found Alien Impact Weapon 25467 | -3/Quarantine | System corruption reached 10% 25560 | -3/Quarantine | Found Alien Energy Cannon 25828 | -3/Quarantine | Entered Research 25828 | -2/Research | Evolved 2 slots: Utility x1, Weapon x1 25829 | -2/Research | Loaded intel: 124 machine locations 25894 | -2/Research | Found Exp. Terrain Scan Processor 25948 | -2/Research | Crushed by falling debris 25952 | -2/Research | Identified exit to Testing 25976 | -2/Research | Build established: Scavenger-Gladiator 26127 | -2/Research | Lost 4 parts (2p1n1u) 26133 | -2/Research | Destroyed 8 combat bots 26159 | -2/Research | Spotted B-90 Cyclops 26184 | -2/Research | Garrison activated, responded to threat 26241 | -2/Research | Core integrity fell below 50% 26243 | -2/Research | Entered Testing 26244 | -2/Testing | Loaded intel: 58 machine locations 26269 | -2/Testing | Rewired PL-QIM1QB4542 26271 | -2/Testing | Lost 18 parts (5n8u5w) 26322 | -2/Testing | Identified Core Cannon 26335 | -2/Testing | Found Prototype Energy Gun 26335 | -2/Testing | Identified Tachyon Dispersion Ray 26360 | -2/Testing | Core integrity fell below 20% 26381 | -2/Testing | Rewired PY-P89U82FA7G 26413 | -2/Testing | Found Prototype Energy Cannon 26435 | -2/Testing | Destroyed by H-88 Terminator with Heavy Machine Gun Last Messages --------------- 26392_ Slug penetrates PY-P89U82FA7G. 26392_ Slug penetrates Terminal. 26392_ Graphene Brace destroyed. 26392_ Slug penetrates Terminal. 26393_ Acquired Cld. Q-thruster. 26395_ Penetrated by Slug. 26409_ Beam penetrates Reinforced Shell. 26409_ Reinforced Shell breached. 26409_ Beam penetrates Reinforced Shell. 26409_ Beam penetrates Machine. 26409_ Beam penetrates Wall. 26412_ Slug penetrates Reinforced Shell. 26413_ Dropped Tachyon Dispersion Ray. 26413_ Acquired Prototype Energy Cannon. 26413_ Slug penetrates Reinforced Shell. 26415_ Slug penetrates Machine. 26416_ K-01 Serf collects debris. 26417_ Slug penetrates Machine. 26420_ K-01 Serf cleans the Sonic Impulse Analyzer. 26435_ Slug penetrates Wall. Map ----- +----------------------------------------------------+ | ?????????????????????"""?????????????????????????? | | ?????????????????????"""??????"""????????????????? | | ?????????????????????"""??????"""????????????????? | | ??????????????????????????????"""????????????????? | | ??????????????????????????+??????????????????????? | | ?????????????????????????# ??????????????????????? | | ?????????????????""?????? ??????????????????????? | | ?????????????????T"?????? #?????????????????????? | | ????????????????????????# #?????????????????????? | | ????????????????????????# k#?????????????????????? | | ????????????????????????# #?"""S"""?????????????? | | ????????????????????????# +?"""?"""?????????????? | | ????????????????????????# #?????????????????????? | | ????????????????????????# #######???????????????? | | ????????????????????????# + #?????????#?????? | | ??????????????????""""??# h#"" #?#####??? ###### | | ??????????????????""""??# #"F [#?#"""#??" | | ??????????????????""""??#c #""" #?#"T"#??? | | ??????????????????""""??+ #""" ###" "##### | | ??????????????????""""??# # + | | ????????????????????????# # ] = ## ##??? | | ????????????????????????# # ## """ #???? | | ????????????????????????# # """ ## """ #???? | | ????????????????????????# # """ ## """ ####???? | | ????????????????????????# # """ ## #??????? | | ????????????????????????#@ # ## #??????? | | ????????????????????????# ###+#### #??????? | | ????????????????????????# #??????? | | ????????????????????????# ######## | | ????????????????????????#### """ == # | | ???????????????????????????# """ == % # " | | ??????????????????########## """ = + " | | ??????????????????# # o # " | | ??????????????????# # """ !! ### # " | | ??????????????????# # """ !! #?# # " | | ??????????????????# "" / # """ #?# # " | | ??????????????????# """ # #?# # | | ??????????????????# "T #% #?# # " | | ??????????????????# """ #$ #?# + " | | ??????????????????# "" $+% #?# # " | | ??????????????????# |# ########?# # " | | ??????????????????####### ## #????????# # " | | ??????????????????# # #??#####?# # " | | ??????????????????# # #??# #?# + | | ??????????????????# # #??# #?# #### | | ??????????????????# # #### ### | | ????????????????# + # | | ???????????????# # #######+###+#+##+# | | ???????????????## # #???? ?? ??# | | ?????????#####??" ?# #???# """"""?# | +----------------------------------------------------+ Best States ------------- Heat Dissipation 97 Coolant Potential 80 Energy Generation 45 Energy Capacity 600 Matter Stores 450 Matter Capacity 450 Sight Range 23 Terrain Scan Density 1010 Jamming Range 14 Cloak Strength 3 Armor Coverage 2000 Resistance: KI 30 Resistance: TH 30 Core Shielding 30 Utility Shielding 90 Phase Shifting 20 Evasion (%) 70 Targeting Accuracy 16 Melee Accuracy 24 Core Analysis 6 Recoil Reduction 8 Particle Charging 25 Offensive Hacking 24 Defensive Hacking 24 Item Schematics ----------------- Hcp. Storage Unit | -9/Recycling | Hacked Combat Drone Bay | -6/Data Miner | Free Lgt. Regenerative Plating | -6/Data Miner | Free Cld. Gravmag System | -6/Data Miner | Free Imp. Thermal Defense Suite | -6/Data Miner | Free Enh. Force Rifle | -6/Data Miner | Free Adv. Surge Thruster | -6/Data Miner | Free Adv. Transmission Jammer | -6/Data Miner | Free Dispersion Rifle | -6/Data Miner | Free Imp. Remote Shield | -6/Data Miner | Free Impulse Thruster | -6/Data Miner | Free Ripper | -4/Factory | Extrapolated Energy Deflector | -4/Extension | Extrapolated Deep Structural Scanner | -4/Extension | Extrapolated Mak. Medium Armor Plating | -4/Extension | Extrapolated Mak. Ablative Armor | -4/Extension | Extrapolated Mak. Laser | -4/Extension | Extrapolated Mak. Thermal Plating | -4/Extension | Extrapolated Mak. Targeting Computer | -4/Extension | Extrapolated 0b10 Decoder Chip [Skirmisher] | -4/Cetus | Extrapolated Mak. Hacking Suite | -4/Cetus | Extrapolated Mak. Heavy Armor Plating | -4/Archives | Extrapolated Adv. Heavy Siege Treads | -3/Research | Hacked Robot Schematics ------------------ B-48 Gladiator | -6/Data Miner | Free I-47 Archangel | -6/Data Miner | Free M-22 Extractor | -6/Data Miner | Free G-50 Soldier | -6/Data Miner | Free Fabricated ------------ Nothing Repaired ---------- Nothing Alien Tech Used ----------------- Dimensional Node Initializer Sigix Broadsword Phase Armor Core Cannon Achievements -------------- None Challenges ------------ None Game ------ Seed TerrainBackupArachnoskeleton Manual? 0 Play Time 03:20:10 Cumulative 523.4 hours Start 2025.07.11 @ 20:46:32 End 2025.07.12 @ 13:50:17 Sessions 5 Manual Loads 0 Difficulty Rogue Special Mode None Game No. 230 Rogue 230 Adventurer 0 Explorer 0 Win Type - Total 24 Types 7/4/7/2/1/0/1/1/0/1 Lore% 90 Gallery% 86 Achievement% 80 Wizard Run 0 Options --------- Layout 0 ASCII 0 Keyboard 0 Movement Arrows Keybinds 0 Fullscreen 2 Font 18/SmallcapsGlow Map View 76x50 Zoom Use 0% Tactical HUD 1 Map Filters NONE Filters NONE Steam 1 RUN: 37f82b7e-ce3a-4629-b576-46b37a865223